[Event "*** SCC Grand Prix: Titled Tuesday Blitz"]
[Site "Chess.com"]
[Date "2020.08.04"]
[Round "6"]
[White "onnoelgersma"]
[Black "peixe64"]
[Result "0-1"]
[WhiteElo "2450"]
[BlackElo "2337"]
[TimeControl "180+1"]
[EndTime "14:52:28 PDT"]
[Termination "peixe64 won by resignation"]

1. e4 {[%clk 0:03:00.9]} 1... e5 {[%clk 0:02:59.9]} 2. Nf3 {[%clk 0:03:01]} 2...
Nc6 {[%clk 0:03:00.3]} 3. Bb5 {[%clk 0:03:01]} 3... a6 {[%clk 0:02:59.8]} 4. Ba4
{[%clk 0:03:01.4]} 4... Nf6 {[%clk 0:03:00.5]} 5. d3 {[%clk 0:03:01.8]} 5... Bc5
{[%clk 0:02:53.7]} 6. O-O {[%clk 0:03:01.5]} 6... d6 {[%clk 0:02:52.8]} 7. a3
{[%clk 0:03:00.3]} 7... h6 {[%clk 0:02:50.4]} 8. Nc3 {[%clk 0:03:00.4]} 8... O-O
{[%clk 0:02:48.2]} 9. Be3 {[%clk 0:02:56.2]} 9... Nd4 {[%clk 0:02:46.6]} 10.
Bxd4 {[%clk 0:02:42.1]} 10... exd4 {[%clk 0:02:46]} 11. Ne2 {[%clk 0:02:42]}
11... Bg4 {[%clk 0:02:44.7]} 12. Ng3 {[%clk 0:02:42.2]} 12... d5 {[%clk
0:02:09.3]} 13. h3 {[%clk 0:02:28]} 13... Bxf3 {[%clk 0:01:57.3]} 14. Qxf3
{[%clk 0:02:26.7]} 14... dxe4 {[%clk 0:01:57.7]} 15. Nxe4 {[%clk 0:02:27.6]}
15... Nxe4 {[%clk 0:01:55.6]} 16. Qxe4 {[%clk 0:02:28]} 16... Bd6 {[%clk
0:01:45.6]} 17. Bb3 {[%clk 0:02:25.1]} 17... Rb8 {[%clk 0:01:41.2]} 18. Rfe1
{[%clk 0:02:23]} 18... c5 {[%clk 0:01:40.2]} 19. a4 {[%clk 0:02:22.3]} 19... b5
{[%clk 0:01:34.3]} 20. axb5 {[%clk 0:02:22.2]} 20... axb5 {[%clk 0:01:34.2]} 21.
Ra7 {[%clk 0:02:10.8]} 21... Qb6 {[%clk 0:01:02.8]} 22. Rd7 {[%clk 0:02:10.3]}
22... Rbd8 {[%clk 0:00:57.8]} 23. Rxd8 {[%clk 0:02:04.7]} 23... Qxd8 {[%clk
0:00:58]} 24. Qf5 {[%clk 0:02:01.6]} 24... Qc7 {[%clk 0:00:48.3]} 25. Bd5 {[%clk
0:01:54.6]} 25... Bh2+ {[%clk 0:00:37.7]} 26. Kh1 {[%clk 0:01:54.7]} 26... Qf4
{[%clk 0:00:29.4]} 27. Qxf4 {[%clk 0:01:53.8]} 27... Bxf4 {[%clk 0:00:29.4]} 28.
Re7 {[%clk 0:01:52.3]} 28... Bc1 {[%clk 0:00:26.3]} 29. b3 {[%clk 0:01:48.3]}
29... Ba3 {[%clk 0:00:19.7]} 30. Rb7 {[%clk 0:01:45.1]} 30... Bb4 {[%clk
0:00:18.1]} 31. Rxb5 {[%clk 0:01:42.5]} 31... Rd8 {[%clk 0:00:17.1]} 32. Be4
{[%clk 0:01:37.5]} 32... Re8 {[%clk 0:00:15.6]} 33. Rb7 {[%clk 0:01:36.8]} 33...
g6 {[%clk 0:00:13.6]} 34. g3 {[%clk 0:01:36.6]} 34... Kg7 {[%clk 0:00:12.9]} 35.
Kg2 {[%clk 0:01:36.9]} 35... Kf6 {[%clk 0:00:13.1]} 36. Bd5 {[%clk 0:01:37]}
36... Re7 {[%clk 0:00:13.7]} 37. Rb6+ {[%clk 0:01:36.8]} 37... Ke5 {[%clk
0:00:12.4]} 38. Be4 {[%clk 0:01:35.4]} 38... Re6 {[%clk 0:00:10.4]} 39. Rb7
{[%clk 0:01:32.9]} 39... Kf6 {[%clk 0:00:10.8]} 40. Bd5 {[%clk 0:01:33]} 40...
Re7 {[%clk 0:00:11.3]} 41. Rb6+ {[%clk 0:01:33.2]} 41... Ke5 {[%clk 0:00:11.6]}
42. Bc4 {[%clk 0:01:33.9]} 42... Kf5 {[%clk 0:00:06.8]} 43. Rd6 {[%clk
0:01:31.5]} 43... Ke5 {[%clk 0:00:06.3]} 44. Rd5+ {[%clk 0:01:29.9]} 44... Kf6
{[%clk 0:00:06.7]} 45. Rd8 {[%clk 0:01:26.3]} 45... Kg7 {[%clk 0:00:07.1]} 46.
h4 {[%clk 0:01:25.6]} 46... h5 {[%clk 0:00:07.6]} 47. Kf3 {[%clk 0:01:23.8]}
47... Kf6 {[%clk 0:00:08.1]} 48. Rd6+ {[%clk 0:01:20.8]} 48... Kg7 {[%clk
0:00:09]} 49. g4 {[%clk 0:01:18.4]} 49... hxg4+ {[%clk 0:00:08.9]} 50. Kxg4
{[%clk 0:01:19.3]} 50... Ra7 {[%clk 0:00:09.3]} 51. f4 {[%clk 0:01:17.6]} 51...
Re7 {[%clk 0:00:09.6]} 52. f5 {[%clk 0:01:17.2]} 52... gxf5+ {[%clk 0:00:09.3]}
53. Kxf5 {[%clk 0:01:17.9]} 53... Re1 {[%clk 0:00:09.2]} 54. Rd7 {[%clk
0:01:17.4]} 54... Rf1+ {[%clk 0:00:09.1]} 55. Ke4 {[%clk 0:01:16.9]} 55... Be1
{[%clk 0:00:07.1]} 56. h5 {[%clk 0:01:16.8]} 56... Bh4 {[%clk 0:00:07.2]} 57.
h6+ {[%clk 0:01:12.8]} 57... Kxh6 {[%clk 0:00:07.2]} 58. Bxf7 {[%clk 0:01:13.5]}
58... Be1 {[%clk 0:00:05.7]} 59. Bc4 {[%clk 0:01:12.8]} 59... Bb4 {[%clk
0:00:06.2]} 60. Kd5 {[%clk 0:01:10]} 60... Re1 {[%clk 0:00:07.1]} 61. Kc6 {[%clk
0:01:09.4]} 61... Kg5 {[%clk 0:00:07.3]} 62. Rg7+ {[%clk 0:01:09.5]} 62... Kf6
{[%clk 0:00:07.4]} 63. Rf7+ {[%clk 0:01:09.5]} 63... Kg5 {[%clk 0:00:06.7]} 64.
Rf2 {[%clk 0:01:09.4]} 64... Re5 {[%clk 0:00:06.9]} 65. Bd5 {[%clk 0:01:08.8]}
65... Rf5 {[%clk 0:00:07.1]} 66. Rg2+ {[%clk 0:01:08.2]} 66... Kf6 {[%clk
0:00:07.6]} 67. Be4 {[%clk 0:01:08.6]} 67... Re5 {[%clk 0:00:07.9]} 68. Rf2+
{[%clk 0:01:08.8]} 68... Ke7 {[%clk 0:00:08.3]} 69. Bd5 {[%clk 0:01:07.9]} 69...
Kd8 {[%clk 0:00:07.5]} 70. Rf7 {[%clk 0:01:08.1]} 70... Rg5 {[%clk 0:00:05.5]}
71. Be6 {[%clk 0:01:06]} 71... Rg6 {[%clk 0:00:05.6]} 72. Kd5 {[%clk 0:01:06.1]}
72... Rg5+ {[%clk 0:00:05.5]} 73. Kd6 {[%clk 0:01:01.7]} 73... c4+ {[%clk
0:00:05.9]} 74. Kc6 {[%clk 0:01:02.1]} 74... cxd3 {[%clk 0:00:05.3]} 75. cxd3
{[%clk 0:01:02.5]} 75... Rc5+ {[%clk 0:00:05.3]} 76. Kb6 {[%clk 0:01:02.9]}
76... Rc3 {[%clk 0:00:05.3]} 77. Bc4 {[%clk 0:01:02.6]} 77... Rc1 {[%clk
0:00:04.7]} 78. Kb5 {[%clk 0:01:02.7]} 78... Bc3 {[%clk 0:00:05.6]} 79. b4
{[%clk 0:01:03.2]} 79... Rb1 {[%clk 0:00:06.2]} 80. Kc6 {[%clk 0:01:03.6]} 80...
Rxb4 {[%clk 0:00:07.1]} 81. Be6 {[%clk 0:01:02.6]} 81... Ke8 {[%clk 0:00:05.5]}
82. Rh7 {[%clk 0:01:01.2]} 82... Ra4 {[%clk 0:00:05.2]} 83. Kd6 {[%clk 0:00:58]}
83... Ra6+ {[%clk 0:00:05.6]} 84. Ke5 {[%clk 0:00:58.5]} 84... Kf8 {[%clk
0:00:06.1]} 85. Kf6 {[%clk 0:00:57]} 85... Rxe6+ {[%clk 0:00:02.2]} 86. Kxe6
{[%clk 0:00:57.6]} 86... Kg8 {[%clk 0:00:02.9]} 87. Rd7 {[%clk 0:00:57.7]} 87...
Kf8 {[%clk 0:00:03.3]} 88. Kd5 {[%clk 0:00:57.8]} 88... Ke8 {[%clk 0:00:03.5]}
89. Ke4 {[%clk 0:00:58.3]} 89... Kxd7 {[%clk 0:00:03.9]} 90. Kd5 {[%clk
0:00:58.7]} 90... Kc7 {[%clk 0:00:04.2]} 91. Kc4 {[%clk 0:00:59]} 91... Kd7
{[%clk 0:00:05.1]} 92. Kd5 {[%clk 0:00:59.2]} 92... Ke7 {[%clk 0:00:05.9]} 93.
Ke5 {[%clk 0:00:59.9]} 93... Ba1 {[%clk 0:00:05.3]} 94. Kd5 {[%clk 0:00:59.9]}
94... Kf6 {[%clk 0:00:05.9]} 95. Ke4 {[%clk 0:01:00.4]} 95... Ke6 {[%clk
0:00:06.3]} 96. Kf4 {[%clk 0:01:01.1]} 96... Kd5 {[%clk 0:00:06.9]} 97. Kf3
{[%clk 0:01:01.7]} 97... Kc5 {[%clk 0:00:07.5]} 98. Ke2 {[%clk 0:01:02.3]} 98...
Kb4 {[%clk 0:00:08]} 99. Kd2 {[%clk 0:01:02.9]} 99... Bc3+ {[%clk 0:00:08.6]}
100. Kc2 {[%clk 0:01:01.3]} 100... Ka3 {[%clk 0:00:09.5]} 101. Kc1 {[%clk
0:01:00.8]} 101... Kb3 {[%clk 0:00:10]} 102. Kd1 {[%clk 0:01:01.7]} 102... Kb2
{[%clk 0:00:10.3]} 103. Ke2 {[%clk 0:01:02.6]} 103... Kc2 {[%clk 0:00:10.9]}
104. Kf3 {[%clk 0:01:02.4]} 104... Kxd3 {[%clk 0:00:11.8]} 0-1

[Event "*** SCC Grand Prix: Titled Tuesday Blitz"]
[Site "Chess.com"]
[Date "2020.08.04"]
[Round "6"]
[White "tptagain"]
[Black "DenLaz"]
[Result "1/2-1/2"]
[WhiteElo "2939"]
[BlackElo "2722"]
[TimeControl "180+1"]
[EndTime "14:52:32 PDT"]
[Termination "Game drawn - insufficient material"]

1. Nf3 {[%clk 0:03:00.9]} 1... d5 {[%clk 0:02:59.7]} 2. g3 {[%clk 0:03:01.1]}
2... c6 {[%clk 0:02:58.6]} 3. Bg2 {[%clk 0:03:01.3]} 3... Bf5 {[%clk 0:02:58.5]}
4. d3 {[%clk 0:03:00.7]} 4... e6 {[%clk 0:02:58.6]} 5. O-O {[%clk 0:03:00.2]}
5... Nf6 {[%clk 0:02:59.2]} 6. Nbd2 {[%clk 0:03:00.1]} 6... h6 {[%clk
0:02:56.6]} 7. b3 {[%clk 0:02:59.4]} 7... Be7 {[%clk 0:02:56.7]} 8. Bb2 {[%clk
0:02:59.6]} 8... O-O {[%clk 0:02:57.1]} 9. Re1 {[%clk 0:03:00]} 9... Bh7 {[%clk
0:02:54.5]} 10. e4 {[%clk 0:03:00]} 10... a5 {[%clk 0:02:53.5]} 11. a4 {[%clk
0:03:00.2]} 11... Na6 {[%clk 0:02:47.8]} 12. e5 {[%clk 0:03:00.4]} 12... Nd7
{[%clk 0:02:47.1]} 13. Nd4 {[%clk 0:03:00.8]} 13... Qb6 {[%clk 0:02:43.6]} 14.
N2f3 {[%clk 0:02:59.2]} 14... Nb4 {[%clk 0:02:41.7]} 15. h4 {[%clk 0:02:58.8]}
15... Rac8 {[%clk 0:02:39.6]} 16. Re2 {[%clk 0:02:54.5]} 16... Rfd8 {[%clk
0:02:37.7]} 17. Rd2 {[%clk 0:02:39.3]} 17... Nf8 {[%clk 0:02:30.6]} 18. h5
{[%clk 0:02:31.2]} 18... c5 {[%clk 0:02:21.3]} 19. Nb5 {[%clk 0:02:30.7]} 19...
c4 {[%clk 0:02:21.7]} 20. Bd4 {[%clk 0:02:18]} 20... Qa6 {[%clk 0:02:20.4]} 21.
dxc4 {[%clk 0:02:12]} 21... dxc4 {[%clk 0:02:18]} 22. c3 {[%clk 0:02:01.9]}
22... Nd5 {[%clk 0:02:03.6]} 23. bxc4 {[%clk 0:01:58.3]} 23... Rxc4 {[%clk
0:02:02.8]} 24. Bf1 {[%clk 0:01:58.5]} 24... Qc6 {[%clk 0:01:57.4]} 25. Bxc4
{[%clk 0:01:51.6]} 25... Qxc4 {[%clk 0:01:58.3]} 26. Qe2 {[%clk 0:01:49.8]}
26... Qc6 {[%clk 0:01:54.9]} 27. Rad1 {[%clk 0:01:45.4]} 27... Re8 {[%clk
0:01:50.5]} 28. Nd6 {[%clk 0:01:42.9]} 28... Rd8 {[%clk 0:01:40.1]} 29. c4
{[%clk 0:01:27.3]} 29... Nb4 {[%clk 0:01:39.9]} 30. Bc3 {[%clk 0:01:21.6]} 30...
Qxa4 {[%clk 0:01:27.2]} 31. Nxb7 {[%clk 0:01:09.5]} 31... Rxd2 {[%clk
0:01:25.6]} 32. Rxd2 {[%clk 0:01:08.9]} 32... Qb3 {[%clk 0:01:11.8]} 33. Bb2
{[%clk 0:00:52.6]} 33... Bd3 {[%clk 0:01:04.6]} 34. Qd1 {[%clk 0:00:46.4]} 34...
Qxd1+ {[%clk 0:00:47.6]} 35. Rxd1 {[%clk 0:00:46]} 35... Be4 {[%clk 0:00:48.5]}
36. Nxa5 {[%clk 0:00:37]} 36... Bxf3 {[%clk 0:00:48.7]} 37. Rd2 {[%clk
0:00:33.6]} 37... Nc6 {[%clk 0:00:46.8]} 38. Nxc6 {[%clk 0:00:28.5]} 38... Bxc6
{[%clk 0:00:47.7]} 39. Bd4 {[%clk 0:00:24.6]} 39... g6 {[%clk 0:00:46.3]} 40.
hxg6 {[%clk 0:00:23.9]} 40... fxg6 {[%clk 0:00:47.2]} 41. Ra2 {[%clk 0:00:24]}
41... Kf7 {[%clk 0:00:44.2]} 42. Ra6 {[%clk 0:00:22.2]} 42... Be4 {[%clk
0:00:44.3]} 43. Ra7 {[%clk 0:00:20.7]} 43... Ke8 {[%clk 0:00:42.9]} 44. f4
{[%clk 0:00:20.8]} 44... g5 {[%clk 0:00:40.1]} 45. fxg5 {[%clk 0:00:18.4]} 45...
hxg5 {[%clk 0:00:41]} 46. Kf2 {[%clk 0:00:18.8]} 46... Nd7 {[%clk 0:00:41.1]}
47. Ke3 {[%clk 0:00:18.7]} 47... Bh1 {[%clk 0:00:39.9]} 48. Kd2 {[%clk
0:00:17.7]} 48... Nb8 {[%clk 0:00:38.1]} 49. Bc3 {[%clk 0:00:12.3]} 49... Nc6
{[%clk 0:00:36.7]} 50. Ra8+ {[%clk 0:00:11.8]} 50... Kf7 {[%clk 0:00:37.1]} 51.
Rc8 {[%clk 0:00:09.5]} 51... Bf3 {[%clk 0:00:33.5]} 52. Ke3 {[%clk 0:00:09.1]}
52... g4 {[%clk 0:00:33.8]} 53. Kd3 {[%clk 0:00:07.9]} 53... Kg6 {[%clk
0:00:29.1]} 54. Bd4 {[%clk 0:00:04.2]} 54... Kf5 {[%clk 0:00:20.9]} 55. c5
{[%clk 0:00:04.9]} 55... Nxe5+ {[%clk 0:00:20.9]} 56. Bxe5 {[%clk 0:00:05.5]}
56... Kxe5 {[%clk 0:00:21.8]} 57. c6 {[%clk 0:00:05.8]} 57... Kd6 {[%clk
0:00:17.5]} 58. c7 {[%clk 0:00:06.2]} 58... Kd7 {[%clk 0:00:18.1]} 59. Re8
{[%clk 0:00:06.5]} 59... Bb7 {[%clk 0:00:18.7]} 60. Rg8 {[%clk 0:00:06.4]} 60...
Kxc7 {[%clk 0:00:18.6]} 61. Rxg4 {[%clk 0:00:07]} 61... Kd6 {[%clk 0:00:19.1]}
62. Ke3 {[%clk 0:00:07.2]} 62... Bf6 {[%clk 0:00:19]} 63. Rb4 {[%clk 0:00:06.6]}
63... Bd5 {[%clk 0:00:19]} 64. g4 {[%clk 0:00:06.3]} 64... Bg5+ {[%clk
0:00:19.2]} 65. Kd4 {[%clk 0:00:06.3]} 65... Bd8 {[%clk 0:00:16.8]} 66. Rb1
{[%clk 0:00:05]} 66... Bf6+ {[%clk 0:00:16.5]} 67. Ke3 {[%clk 0:00:04.7]} 67...
Ke5 {[%clk 0:00:16.7]} 68. Rf1 {[%clk 0:00:03.8]} 68... Bg5+ {[%clk 0:00:16.7]}
69. Kd3 {[%clk 0:00:03.9]} 69... Bb7 {[%clk 0:00:12.9]} 70. Rf8 {[%clk
0:00:03.4]} 70... Ba6+ {[%clk 0:00:12.6]} 71. Kc3 {[%clk 0:00:03.7]} 71... Ke4
{[%clk 0:00:11.4]} 72. Ra8 {[%clk 0:00:03.4]} 72... Be2 {[%clk 0:00:10.1]} 73.
Re8 {[%clk 0:00:02.1]} 73... e5 {[%clk 0:00:10.2]} 74. Rg8 {[%clk 0:00:02.4]}
74... Kf4 {[%clk 0:00:09.8]} 75. Rf8+ {[%clk 0:00:02.4]} 75... Kxg4 {[%clk
0:00:09.5]} 76. Kc2 {[%clk 0:00:02.2]} 76... Bf3 {[%clk 0:00:09.4]} 77. Kd3
{[%clk 0:00:02.5]} 77... e4+ {[%clk 0:00:09.5]} 78. Kd4 {[%clk 0:00:03]} 78...
e3 {[%clk 0:00:09.3]} 79. Re8 {[%clk 0:00:03.6]} 79... e2 {[%clk 0:00:09]} 80.
Kd3 {[%clk 0:00:04.2]} 80... Bh4 {[%clk 0:00:08.7]} 81. Rxe2 {[%clk 0:00:04.7]}
81... Bxe2+ {[%clk 0:00:09.3]} 82. Kxe2 {[%clk 0:00:05.6]} 1/2-1/2

[Event "*** SCC Grand Prix: Titled Tuesday Blitz"]
[Site "Chess.com"]
[Date "2020.08.04"]
[Round "6"]
[White "amintabatabaei"]
[Black "Dr-Bassem"]
[Result "1/2-1/2"]
[WhiteElo "2964"]
[BlackElo "2794"]
[TimeControl "180+1"]
[EndTime "14:52:54 PDT"]
[Termination "Game drawn by repetition"]

1. e4 {[%clk 0:02:54.9]} 1... e5 {[%clk 0:02:59.3]} 2. Nf3 {[%clk 0:02:54.9]}
2... Nc6 {[%clk 0:03:00]} 3. Bc4 {[%clk 0:02:55.2]} 3... Nf6 {[%clk 0:02:59.7]}
4. d3 {[%clk 0:02:54.6]} 4... h6 {[%clk 0:03:00]} 5. c3 {[%clk 0:02:53.9]} 5...
d6 {[%clk 0:03:00.3]} 6. Nbd2 {[%clk 0:02:51.4]} 6... g6 {[%clk 0:03:00.4]} 7.
O-O {[%clk 0:02:49.3]} 7... Bg7 {[%clk 0:03:00.9]} 8. h3 {[%clk 0:02:47.6]} 8...
O-O {[%clk 0:03:01.3]} 9. d4 {[%clk 0:02:44.1]} 9... exd4 {[%clk 0:02:57.3]} 10.
cxd4 {[%clk 0:02:45]} 10... Nxe4 {[%clk 0:02:54.3]} 11. Nxe4 {[%clk 0:02:45.9]}
11... d5 {[%clk 0:02:54.7]} 12. Bxd5 {[%clk 0:02:44.5]} 12... Qxd5 {[%clk
0:02:55.6]} 13. Nc3 {[%clk 0:02:44.7]} 13... Qa5 {[%clk 0:02:35.2]} 14. d5
{[%clk 0:02:44.6]} 14... Ne7 {[%clk 0:02:27.3]} 15. Re1 {[%clk 0:02:40.4]} 15...
Nf5 {[%clk 0:02:09.7]} 16. Bf4 {[%clk 0:02:39.9]} 16... Bd7 {[%clk 0:01:57.8]}
17. Ne5 {[%clk 0:02:40]} 17... Rad8 {[%clk 0:01:53.4]} 18. Qb3 {[%clk
0:02:34.2]} 18... Nd4 {[%clk 0:01:45.9]} 19. Qxb7 {[%clk 0:02:26]} 19... Bc8
{[%clk 0:01:28.7]} 20. Nc6 {[%clk 0:02:00.2]} 20... Bxb7 {[%clk 0:01:28.5]} 21.
Nxa5 {[%clk 0:02:00.4]} 21... Bxd5 {[%clk 0:01:29.1]} 22. Nxd5 {[%clk
0:01:43.8]} 22... Rxd5 {[%clk 0:01:30]} 23. Nc4 {[%clk 0:01:44.5]} 23... Nc2
{[%clk 0:01:14.2]} 24. Ne3 {[%clk 0:01:10.2]} 24... Nxe3 {[%clk 0:01:12.1]} 25.
Bxe3 {[%clk 0:01:10.2]} 25... Bxb2 {[%clk 0:01:10.1]} 26. Rab1 {[%clk
0:01:09.5]} 26... Bg7 {[%clk 0:01:08.8]} 27. Bxa7 {[%clk 0:01:08.4]} 27... Ra5
{[%clk 0:01:04]} 28. Rb7 {[%clk 0:01:06.5]} 28... c5 {[%clk 0:01:00.5]} 29. Bb6
{[%clk 0:00:53.7]} 29... Rxa2 {[%clk 0:00:31.4]} 30. Bxc5 {[%clk 0:00:53.8]}
30... Rc8 {[%clk 0:00:28.4]} 31. Be3 {[%clk 0:00:53.8]} 31... h5 {[%clk
0:00:22.4]} 32. h4 {[%clk 0:00:52.1]} 32... Ra1 {[%clk 0:00:21.3]} 33. Rxa1
{[%clk 0:00:47.3]} 33... Bxa1 {[%clk 0:00:22.2]} 34. g3 {[%clk 0:00:48.2]} 34...
Bf6 {[%clk 0:00:21.8]} 35. Kg2 {[%clk 0:00:48.7]} 35... Kg7 {[%clk 0:00:21.8]}
36. Kf3 {[%clk 0:00:49.2]} 36... Rc3 {[%clk 0:00:20.6]} 37. Ke4 {[%clk
0:00:49.1]} 37... Rc4+ {[%clk 0:00:20.5]} 38. Kd5 {[%clk 0:00:49.2]} 38... Ra4
{[%clk 0:00:19.4]} 39. Kd6 {[%clk 0:00:46.2]} 39... Bd4 {[%clk 0:00:17.6]} 40.
Bf4 {[%clk 0:00:37.4]} 40... Ra2 {[%clk 0:00:10.4]} 41. Kd5 {[%clk 0:00:28.8]}
41... Bf6 {[%clk 0:00:09.8]} 42. Be3 {[%clk 0:00:27.4]} 42... Ra5+ {[%clk
0:00:08.7]} 43. Kd6 {[%clk 0:00:27.4]} 43... Ra6+ {[%clk 0:00:07.3]} 44. Kd7
{[%clk 0:00:27]} 44... Re6 {[%clk 0:00:07.3]} 45. Bc5 {[%clk 0:00:24.1]} 45...
Re5 {[%clk 0:00:07.2]} 46. Kc6 {[%clk 0:00:20.8]} 46... Re6+ {[%clk 0:00:07.2]}
47. Kd7 {[%clk 0:00:19.6]} 47... Re5 {[%clk 0:00:07.4]} 48. Rc7 {[%clk
0:00:17.7]} 48... Re2 {[%clk 0:00:05.7]} 49. Rc8 {[%clk 0:00:17.1]} 49... Rd2+
{[%clk 0:00:04.7]} 50. Kc6 {[%clk 0:00:17.2]} 50... Be5 {[%clk 0:00:04.3]} 51.
Re8 {[%clk 0:00:13.6]} 51... Kf6 {[%clk 0:00:04.3]} 52. Be3 {[%clk 0:00:13]}
52... Rd3 {[%clk 0:00:04.5]} 53. Kc5 {[%clk 0:00:10.8]} 53... Kf5 {[%clk
0:00:04.8]} 54. Kc4 {[%clk 0:00:10.8]} 54... Rc3+ {[%clk 0:00:05.2]} 55. Kb4
{[%clk 0:00:10.6]} 55... Rd3 {[%clk 0:00:06.1]} 56. Kc4 {[%clk 0:00:09.4]} 56...
Rc3+ {[%clk 0:00:06.5]} 57. Kb4 {[%clk 0:00:09.8]} 57... Rc6 {[%clk 0:00:06.5]}
58. Bc5 {[%clk 0:00:08.9]} 58... f6 {[%clk 0:00:06.3]} 59. Rg8 {[%clk 0:00:07]}
59... Rc7 {[%clk 0:00:06.1]} 60. Be3 {[%clk 0:00:06.8]} 60... Rc2 {[%clk
0:00:05.7]} 61. Kb3 {[%clk 0:00:06.6]} 61... Rc3+ {[%clk 0:00:05.4]} 62. Kb4
{[%clk 0:00:06.3]} 62... Rc2 {[%clk 0:00:06]} 63. Bc5 {[%clk 0:00:06.3]} 63...
Re2 {[%clk 0:00:06.1]} 64. Kc4 {[%clk 0:00:06.4]} 64... g5 {[%clk 0:00:04.6]}
65. hxg5 {[%clk 0:00:06.4]} 65... fxg5 {[%clk 0:00:05.5]} 66. Be3 {[%clk
0:00:06.6]} 66... Bf6 {[%clk 0:00:05]} 67. Rf8 {[%clk 0:00:06.1]} 67... Kg6
{[%clk 0:00:04.2]} 68. Rg8+ {[%clk 0:00:05.9]} 68... Kf7 {[%clk 0:00:04.5]} 69.
Ra8 {[%clk 0:00:06]} 69... h4 {[%clk 0:00:04.9]} 70. gxh4 {[%clk 0:00:06.9]}
70... gxh4 {[%clk 0:00:05.6]} 71. Ra7+ {[%clk 0:00:07.7]} 71... Kg6 {[%clk
0:00:06]} 72. Ra6 {[%clk 0:00:08.3]} 72... Kf5 {[%clk 0:00:06.6]} 73. Ra5+
{[%clk 0:00:08]} 73... Kg4 {[%clk 0:00:06.9]} 74. Ra8 {[%clk 0:00:08]} 74... h3
{[%clk 0:00:06.8]} 75. Rg8+ {[%clk 0:00:08.1]} 75... Kh5 {[%clk 0:00:06.4]} 76.
Rg3 {[%clk 0:00:07.6]} 76... Kh4 {[%clk 0:00:05.9]} 77. Rg6 {[%clk 0:00:07.8]}
77... Be5 {[%clk 0:00:05.1]} 78. Rh6+ {[%clk 0:00:07.4]} 78... Kg4 {[%clk
0:00:05.6]} 79. Kd5 {[%clk 0:00:06]} 79... Bc3 {[%clk 0:00:03.3]} 80. Ke4 {[%clk
0:00:06.3]} 80... Bd2 {[%clk 0:00:02.7]} 81. Rg6+ {[%clk 0:00:04.9]} 81... Kh5
{[%clk 0:00:03.1]} 82. Rh6+ {[%clk 0:00:04]} 82... Kg4 {[%clk 0:00:03.2]} 83.
Rg6+ {[%clk 0:00:03.2]} 83... Kh5 {[%clk 0:00:03.9]} 84. Rh6+ {[%clk 0:00:01.4]}
84... Kg4 {[%clk 0:00:04.5]} 1/2-1/2